Cogmind - Beta 14 @@@ ROGUE MODE // 2024.12.01 @ 12:58:26 Player: Dadrick Result: Destroyed by Z2-U4L(R) with Subdweller Machine Gun Performance ------------- Evolutions (0) 0 Regions Visited (3) 600 Robots Destroyed (34) 170 Value Destroyed (785) 785 Prototype IDs (2) 40 Alien Tech Used (0) 0 Bonus (-48) -48 TOTAL SCORE: 1547 Bonus ------- Follower Combat Kills 120 Friendly Fire -168 Cogmind --------- Core Integrity 0/250 Matter 159/300 Energy 100/100 System Corruption 1% Temperature Cool (0) Movement Treading (260) Ox1 Location -10/Subcaves Parts ------- > --- POWER (1) -------- (None) > --- PROPULSION (2) --- Spiked Treads > --- UTILITY (2) ------ Large Storage Unit > --- WEAPON (2) ------- Improved Light Cannon (fused) Improved Light Cannon > --- INVENTORY (15) --- Light Angular Momentum Engine Aluminum Leg Aluminum Leg High-capacity Storage Unit Large Matter Pod (150) Structural Scanner Experimental Sensor Array Seismic Detector ECM Suite Scrap Shield Tractor Beam Grenade Launcher Mining Laser Peak State ------------ > --- POWER ------------ Light Nuclear Core > --- PROPULSION ------- Light Treads Spiked Treads > --- UTILITY ---------- Large Storage Unit Structural Scanner > --- WEAPON ----------- Improved Light Cannon Improved Light Cannon > --- INVENTORY -------- Light Angular Momentum Engine Aluminum Leg Aluminum Leg High-capacity Storage Unit Large Matter Pod Experimental Sensor Array Seismic Detector ECM Suite Light Armor Plating Scrap Shield Tractor Beam Improved Light Cannon Grenade Launcher Mining Laser [Rating: 15] Favorites ----------- Power Ion Engine Engine Ion Engine Power Core Light Nuclear Core Propulsion Light Treads Treads Light Treads Wheel Wheel Utility Large Storage Unit Device Structural Scanner Storage Large Storage Unit Protection Light Armor Plating Weapon Improved Light Cannon Energy Gun Medium Laser Ballistic Gun Light Assault Rifle Ballistic Cannon Improved Light Cannon Launcher Grenade Launcher Special Weapon Mining Laser Build | -11 -10 -10 -10 ------- Run | Yrd Mat Min Sub Slots Evolved . | . . . . Power . | . . . . Propulsion . | . . . . Utility . | . . . . Weapon . | . . . . Parts Attached 57 | 7 17 4 29 Power 7 | 1 1 1 4 Engine 5 | 1 1 1 2 Core 2 | . . . 2 Reactor . | . . . . Propulsion 8 | 2 1 . 5 Treads 4 | 2 . . 2 Leg . | . . . . Wheel 4 | . 1 . 3 Hover . | . . . . Flight . | . . . . Utility 16 | 2 7 1 6 Device 7 | 1 2 1 3 Storage 5 | 1 4 . . Processor . | . . . . Hackware . | . . . . Protection 4 | . 1 . 3 Artifact . | . . . . Weapon 26 | 2 8 2 14 Energy Gun 4 | 1 3 . . Energy Cannon . | . . . . Ballistic Gun 1 | 1 . . . Ballistic Cannon 11 | . 3 1 7 Launcher 3 | . . . 3 Special Weapon 7 | . 2 1 4 Impact Weapon . | . . . . Slashing Weapon . | . . . . Piercing Weapon . | . . . . Special Melee Weapon . | . . . . Unidentified Prototypes . | . . . . Parts Lost 7 | . . . 7 Power 2 | . . . 2 Propulsion 3 | . . . 3 Utility 1 | . . . 1 Weapon 1 | . . . 1 Highest Loss Streak 2 | . . . 2 To Critical Strikes . | . . . . Average Slot Usage (%) 96 | . 99 100 92 Engine 11 | . 14 14 8 Core 2 | . . . 4 Treads 19 | . 25 14 19 Wheel 7 | . 2 14 5 Device 5 | . 13 4 3 Storage 14 | . 14 14 14 Protection 6 | . . 9 7 Energy Gun 1 | . 5 . . Ballistic Cannon 24 | . 20 27 25 Special Weapon 1 | . . . 2 Peak Build Rating 15 | 7 10 11 15 Average Rating 10 | 5 9 10 12 On Entrance 7 | . 7 10 11 Naked Turns . | . . . . Heaviest Build 47 | 12 47 36 36 Greatest Support 40 | 40 40 20 40 Greatest Overweight (x) 3 | . 3 3 3 Average Overweight (x) 1 | . . 2 1 Largest Inventory Capacity 20 | 8 20 15 15 Average Capacity 14 | 7 11 15 15 Most Carried 15 | 6 15 15 15 Average Carried 13 | 3 9 14 14 Final Capacity 15 | 8 15 15 15 Final Carried 15 | 6 15 15 14 Class Distribution -------------------- 99% | Mutant Dominant Class ---------------- Mutant | -10/Materials Mutant | -10/Mines Mutant | -10/Subcaves Resources | -11 -10 -10 -10 ----------- Run | Yrd Mat Min Sub Matter Collected 1524 | 285 525 262 452 Remotely 127 | . . . 127 Salvage Created 1027 | 111 528 210 178 Parts 65 | 7 27 14 17 Haulers Intercepted 1 | . 1 . . Recyclers Shooed 1 | 1 . . . Parts Field Recycled . | . . . . Retrieved Matter . | . . . . Parts Self-Destructed 20 | . . . 20 Prevented . | . . . . Kills | -11 -10 -10 -10 ------- Run | Yrd Mat Min Sub Combat Hostiles Destroyed 25 | . 11 9 5 Guns 2 | . 2 . . Cannons 22 | . 9 9 4 AOE 1 | . . . 1 Classes Destroyed 7 | 2 4 . 1 Builder 1 | . 1 . . Tunneler 3 | 3 . . . Hauler 1 | . 1 . . Recycler 3 | 1 2 . . Swarmer 8 | . 3 3 2 Grunt 15 | . 8 6 1 Subdweller 2 | . . . 2 Thug 1 | . . . 1 Best Kill Streak 5 | 3 5 3 2 Combat Bots Only 3 | . 3 3 2 Max Kills in Single Turn 2 | 1 1 2 1 Gunslinging . | . . . . Exploded 1 | . . . 1 Melee . | . . . . Uniques/NPCs Destroyed . | . . . . Combat | -11 -10 -10 -10 -------- Run | Yrd Mat Min Sub Hostile Shots Fired 113 | . 43 18 52 Missed 36 | . 15 7 14 Damage Taken 1411 | . 302 148 961 Core 268 | . 14 34 220 Absorbed by Shields . | . . . . Core Remaining (%) 100 | 100 . . . Volleys Fired 151 | 15 45 23 68 Largest 2 | 2 2 2 2 Hottest 139 | 70 100 139 100 Shots Fired 260 | 30 86 42 102 Gun 52 | 30 22 . . Cannon 163 | . 60 36 67 Launcher 7 | . . . 7 Special 38 | . 4 6 28 Kinetic 189 | 15 71 36 67 Thermal 64 | 15 15 6 28 Explosive 7 | . . . 7 Electromagnetic . | . . . . Robot Hit Streak 9 | 7 8 6 9 Robot Miss Streak 5 | 4 5 4 3 Penetration Max . | . . . . Secondary Targets . | . . . . Shots Hit Robots 119 | 20 47 18 34 Core Hits 56 | 6 20 10 20 Critical Kills . | . . . . Critical Parts Destroyed 1 | 1 . . . Critical Strikes 8 | 3 2 2 1 Burn 2 | 2 . . . Destroy 1 | 1 . . . Blast 5 | . 2 2 1 Melee Attacks . | . . . . Impact . | . . . . Slashing . | . . . . Piercing . | . . . . Sneak Attacks . | . . . . Combat Hostiles . | . . . . Follow-up Attacks . | . . . . Damage Inflicted 2701 | 220 809 467 1205 Guns 370 | 220 150 . . Cannons 1864 | . 659 467 738 Explosions 461 | . . . 461 Melee . | . . . . Ramming 6 | . . . 6 Kinetic 2000 | 83 712 467 738 Thermal 234 | 137 97 . . Explosive 461 | . . . 461 Electromagnetic . | . . . . Impact . | . . . . Slashing . | . . . . Piercing . | . . . . Highest Corruption 1 | . 1 1 1 Average Corruption 1 | . 1 1 1 Corruption Purged . | . . . . Corruption Blocked . | . . . . Effects 28 | . 4 8 16 Message Errors 5 | . 1 . 4 Matter Fused 4 | . 2 2 . Heat Flow Errors 6 | . . 3 3 Energy Discharges 2 | . 1 . 1 Parts Fused 1 | . . 1 . Data Loss (minor) 7 | . . . 7 Data Loss (major) 1 | . . 1 . Misfires 2 | . . 1 1 Overload Shots . | . . . . Overflow Damage 11 | . 11 . . Projectiles 11 | . 11 . . Explosions . | . . . . Melee . | . . . . Knockbacks 22 | . 10 7 5 Impact 1 | . . . 1 Kinetic 17 | . 9 4 4 Secondary 4 | . 1 3 . Self-Inflicted Damage . | . . . . Shots . | . . . . Rammed 1 | . . . 1 Targets Rammed 1 | . . . 1 Kicked . | . . . . Crushed . | . . . . Highest Temperature 254 | 70 136 254 180 Average Temperature 52 | 25 40 69 84 Received Heat Transfer 360 | . 141 69 150 Siege Activations . | . . . . Robots Corrupted . | . . . . Combat Hostiles . | . . . . Parts Fried . | . . . . Impact Corruptions . | . . . . Robots Melted . | . . . . Combat Hostiles . | . . . . Parts Melted 4 | 2 2 . . Heat Transferred 851 | 555 296 . . Parts Sabotaged . | . . . . Parts Stolen . | . . . . Parts Stripped . | . . . . Power Chain Reactions . | . . . . Alert | -11 -10 -10 -10 ------- Run | Yrd Mat Min Sub Peak Influence 272 | 20 272 240 . Initial 58 | . 13 58 . Average 77 | 7 115 57 . Maximum Alert Level 1 | . 1 1 . Low Security (%) 97 | 100 96 98 . Level 1 2 | . 3 1 . Level 2 . | . . . . Level 3 . | . . . . Level 4 . | . . . . Level 5 . | . . . . High Security . | . . . . Max Security . | . . . . Squads Dispatched 2 | . 2 . . Investigation . | . . . . Extermination . | . . . . Reinforcement 2 | . 2 . . Assault . | . . . . Garrison . | . . . . Intercept . | . . . . Searches Triggered . | . . . . Construction Impeded . | . . . . Haulers Reinforced . | . . . . Active Scanning Responses . | . . . . Cargo Convoy Interrupts . | . . . . Stealth | -11 -10 -10 -10 --------- Run | Yrd Mat Min Sub Distress Signals 1 | . 1 . . Communications Jammed . | . . . . Distress Signals . | . . . . Times Spotted 60 | . 20 10 30 Peak Tracking Total 4 | . 4 3 4 Tactical Retreats 1 | . . . 1 Traps | -11 -10 -10 -10 ------- Run | Yrd Mat Min Sub Traps Triggered 1 | . 1 . . Indirectly . | . . . . Trap Hack Attempts . | . . . . Triggered . | . . . . Disarmed . | . . . . Reprogrammed . | . . . . Reused . | . . . . Traps Extracted . | . . . . Installed . | . . . . Triggered . | . . . . Machines | -11 -10 -10 -10 ---------- Run | Yrd Mat Min Sub Machines Disabled 3 | . 3 . . Max in Single Turn 1 | . 1 . . Machines Repaired . | . . . . Machines Dismantled . | . . . . Machines Sabotaged . | . . . . Overloaded Fab Kills . | . . . . Hacking | -11 -10 -10 -10 --------- Run | Yrd Mat Min Sub Machines Accessed 7 | . 7 . . Terminals 7 | . 7 . . Fabricators . | . . . . Repair Stations . | . . . . Recycling Units . | . . . . Scanalyzers . | . . . . Garrison Access . | . . . . Total Hacks 17 | . 17 . . Successful 11 | . 11 . . Failed 6 | . 6 . . Catastrophic . | . . . . Database Lockouts . | . . . . Manual 4 | . 4 . . Terminals 17 | . 17 . . Fabricators . | . . . . Repair Stations . | . . . . Recycling Units . | . . . . Scanalyzers . | . . . . Garrison Access . | . . . . Terminal Hacks 11 | . 11 . . Record 1 | . 1 . . Robot Analysis 2 | . 2 . . Prototype ID Bank 1 | . 1 . . Locate Traps 5 | . 5 . . Hauler Manifests 1 | . 1 . . Zone Layout 1 | . 1 . . Fabricator Hacks . | . . . . Repair Station Hacks . | . . . . Recycling Unit Hacks . | . . . . Scanalyzer . | . . . . Garrison Access Hacks . | . . . . Unauthorized Hacks . | . . . . Terminals . | . . . . Fabricators . | . . . . Repair Stations . | . . . . Recycling Units . | . . . . Scanalyzers . | . . . . Garrison Access . | . . . . Data Cores Recovered . | . . . . Used . | . . . . Hacking Detections 7 | . 7 . . Full Trace Events . | . . . . Feedback Events . | . . . . Feedback Blocked . | . . . . Robot Schematics Acquired . | . . . . Robots Built . | . . . . Authchips . | . . . . Time . | . . . . Total Robot Build Rating . | . . . . Part Schematics Acquired . | . . . . Parts Built . | . . . . Authchips . | . . . . Time . | . . . . Total Part Build Rating . | . . . . Parts Repaired . | . . . . Time . | . . . . Parts Recycled . | . . . . Recycled Matter . | . . . . Retrieved Matter . | . . . . Retrieved Components . | . . . . Parts Scanalyzed . | . . . . Part Schematics Acquired . | . . . . Parts Damaged . | . . . . Bothacking | -11 -10 -10 -10 ------------ Run | Yrd Mat Min Sub Used RIF Installer . | . . . . Robots Hacked . | . . . . Non-combat . | . . . . Combat . | . . . . Robot Hacks Applied . | . . . . Relay Couplers Released . | . . . . Fabnet Peak Effective % . | . . . . Robots Rewired . | . . . . Allies Hacked . | . . . . Hacks Repelled . | . . . . Allies | -11 -10 -10 -10 -------- Run | Yrd Mat Min Sub Total Allies 3 | . . 3 . Largest Group 3 | . . 3 3 Highest-Rated Group 40 | . . 40 40 Highest-Rated Ally 16 | . . 16 16 Total Orders . | . . . . Ally Attacks 33 | . . 11 22 Total Damage 341 | . . 113 228 Kills 5 | . . 1 4 Allies Corrupted . | . . . . Allies Melted . | . . . . Intel | -11 -10 -10 -10 ------- Run | Yrd Mat Min Sub Robot Analysis Total 2 | . 2 . . Derelict Logs Recovered 4 | . . 2 2 Drone Launches . | . . . . Drone Recoveries . | . . . . Exploration | -11 -10 -10 -10 ------------- Run | Yrd Mat Min Sub Turns Passed 4597 | 160 937 1219 2281 Spaces Moved 2279 | 66 473 524 1216 Core 3 | 3 . . . Treads 1369 | 63 371 234 701 Legs . | . . . . Wheels 907 | . 102 290 515 Hover . | . . . . Flight . | . . . . Fastest Speed 50 | 50 125 125 110 Average Speed 163 | 155 152 176 163 Slowest Speed 260 | 160 240 240 260 Overloaded Moves . | . . . . Propulsion Burnouts . | . . . . Robots Hopped . | . . . . Cave-ins Triggered 1 | . . . 1 Exploration Rate (%) 67 | 6 94 88 81 Regions Visited 3 Branch Regions 2 Pre-discovered Areas . | . . . . Known Exits Taken . | . . . . Unknown Exits Taken 3 | 1 1 1 . Scrap Searched 1 | . . 1 . Spaces Dug 9 | . 4 . 5 Terrain Destroyed 44 | . 6 2 36 Melee . | . . . . Projectile 19 | . 6 2 11 AOE 25 | . . . 25 Terrain Rammed . | . . . . Walls Destroyed . | . . . . Machines Disabled . | . . . . Actions | -11 -10 -10 -10 --------- Run | Yrd Mat Min Sub Total 2800 | 93 594 766 1347 Wait 272 | . 41 211 20 Move 2275 | 65 472 523 1215 Hop . | . . . . Pick Up 21 | 6 9 2 4 Fast Attach 17 | 7 5 1 4 Attach 4 | . 1 . 3 Detach 2 | . 1 . 1 Swap 36 | . 11 3 22 Drop 20 | . 9 3 8 Fire 151 | 15 45 23 68 Melee . | . . . . Ram . | . . . . Kick . | . . . . Crush 1 | . . . 1 Escape Stasis 1 | . . . 1 Rewire . | . . . . Trap . | . . . . Miscellaneous . | . . . . Route ------- -11/Scrapyard -10/Materials (discovered 5 exits: [*Mat x3] / [*Min x2]) -10/Mines (discovered 3 exits: [*Mat x2] / [*Sub]) -10/Subcaves (discovered 3 exits: [*Mat x2] / [*Rec]) History --------- Turn | Location | Event 4 | -11/Scrapyard | Discovered new exit (range 16) 161 | -11/Scrapyard | Entered Materials 341 | -10/Materials | Build established: Mutant 383 | -10/Materials | Discovered new exit (range 14) 673 | -10/Materials | Discovered new exit (range 14) 751 | -10/Materials | Discovered new exit (range 9) 967 | -10/Materials | Discovered new exit (range 10) 1015 | -10/Materials | Discovered new exit (range 15) 1098 | -10/Materials | Entered Mines 1283 | -10/Mines | Discovered new exit (range 5) 1416 | -10/Mines | Excavation squad dispatched 1416 | -10/Mines | A large section of the Mines collapsed 1578 | -10/Mines | Discovered new exit (range 8) 1583 | -10/Mines | Assisted by bots powering up and referring to "LRC-V3" 1949 | -10/Mines | Found a damaged Exp. Sensor Array with a note attached 1953 | -10/Mines | Found Prototype Device 2293 | -10/Mines | Discovered new exit (range 11) 2317 | -10/Mines | Entered Subcaves 2317 | -10/Subcaves | Accompanied by 3 allies 2365 | -10/Subcaves | Ambushed by swarm of Subdwellers 2366 | -10/Subcaves | Ambushed by Subdwellers from Twisted Machinery 2475 | -10/Subcaves | Learned 2 Materials zone layouts 2740 | -10/Subcaves | Shifting Twisted Machinery released Spk. Treads 2750 | -10/Subcaves | Shifting Twisted Machinery released Sub. Monowheel 2884 | -10/Subcaves | A swath of the cavern ceiling suddenly collapsed 2888 | -10/Subcaves | Shifting Twisted Machinery released Sub. Laser 3007 | -10/Subcaves | Discovered new exit (range 16) 3044 | -10/Subcaves | A swath of the cavern ceiling suddenly collapsed 3132 | -10/Subcaves | Discovered new exit (range 9) 3279 | -10/Subcaves | Shifting Twisted Machinery released Spk. Treads 3566 | -10/Subcaves | Discovered new exit (range 15) 3682 | -10/Subcaves | Curiously followed by a Cobbler waking with a query about "LVR3C" 3727 | -10/Subcaves | Shifting Twisted Machinery released Sub. Machine Gun 3848 | -10/Subcaves | Shifting Twisted Machinery released Sub. Power Source 3853 | -10/Subcaves | Ambushed by Subdweller buried in earth 4563 | -10/Subcaves | Crushed by falling debris 4564 | -10/Subcaves | Core integrity fell below 50% 4564 | -10/Subcaves | Core integrity fell below 20% 4598 | -10/Subcaves | Destroyed by Z2-U4L(R) with Subdweller Machine Gun Last Messages --------------- 04144_ 87-035(R) destroyed. 04145_ PG-943(O) collects matter. 04149_ Acquired 33 matter. 04152_ Acquired 7 matter. 04156_ Subatomizers dissect the Sub. Laser. 04176_ PG-943(O) puts together Sub. Beam Cannon. 04201_ Sub. Monowheel shoots sparks and powers down. 04202_ Dropped Broken Sub. Monowheel. 04216_ PG-943(O) puts together Riot Gun. 04307_ FLK1PSMT A8S6 QR%< UX7WHHC 04335_ KW% I1IPE4T,9=:U#J7DXNQY/NY 04456_ System corrupted: Component data lost. 04563_ The unstable cave ceiling collapses. 04563_ Crushed by falling debris. 04566_ Z2-U4L(R): "ARGHSUB!" 04574_ Z2-U4L(R) suffers critical hit (Destroy). 04574_ 32-MSE(h) destroyed. 04582_ Slammed into PG-943(O). 04582_ PG-943(O) knocked back. 04586_ Lgt. Ion Engine destroyed. Map ----- +----------------------------------------------------+ | ???????????????????????????????????????????????? | | ???????????????????????????????????????????????? | | ???????????????????????????????????????????????? | | ???????????????????????????????????????????????? | | ???????????????????????????????????????????????? | | ???????????????????????????????????????????????? | | ???????????????????????????????????????????????? | | ???????????????????????????????????????????????? | | ???????????????????????????????????????????????? | | ???????????????????????????????????????????????? | | ???????????????????????????????????????????????? | | ???????????????????????????????????????????????? | | ???????????????????????????????????????????????? | | ???????????????????????????????????????????????? | | ???????????????????????????????????????????????? | | ???????????????????????????????????????????????? | | ???????????????????????????????????????????????? | | ????????????????????????????####???????????????? | | ??????????????????????????###%%#???????????????? | | ?????????????????????????## =###???????????????? | | ?????????????????????????# ]#?????????????????? | | ??????????????####??????## ##?????????????????? | | ??????????????# #??##### ###??????????????????? | | ??????????????# #??#%%#%##????#####???????????? | | ??????????????# #??##%R##????## #???????????? | | ??????????????# ##??# @##????# #???????????? | | ??????????????## #### ##???# ##???????????? | | ???????????????# ## #???## #???????????? | | ???????????????## ##????# ##???????????? | | ????????????????### ##??#### #???????????? | | ??????????????????# #???# # ######??????? | | ?????????????????## ##??# #??????? | | ????????????????## ##### ##??????? | | ????????????????# ### ##???????? | | ????????????????# ## ####????????? | | ????????????????##### ##???????????? | | ????????????????????# #????????????? | | ????????????????????# #????????????? | | ???????????????????## ### #????????????? | | ???????????????????# # #?## #????????????? | | ???????????????#####" # #??## ##????????????? | | ???????????????# # #???###?????????????? | | ???????????????# #???????????????????? | | ???????????????# ##???#???????????????? | | ???????????????# #" #?? #???????????????? | | ???????????????##?## ## #???????????????? | | ???????????????????# #???????????????? | | ???????????????????## #???????????????? | | ????????????????????# #### ###???????###?????? | | ???????????????????## ###???#####????### ##???## | +----------------------------------------------------+ Best States ------------- Heat Dissipation 35 Energy Generation 14 Energy Capacity 250 Matter Stores 300 Matter Capacity 300 Sight Range 16 Terrain Scan Density 10 Armor Coverage 150 Evasion (%) 40 Recoil Reduction 2 Item Schematics ----------------- None Robot Schematics ------------------ None Fabricated ------------ Nothing Alien Tech Used ----------------- None Achievements -------------- None Challenges ------------ None Game ------ Seed MakeshiftDiametricDrive Manual? 0 Play Time 00:32:58 Cumulative 212.0 hours Start 2024.12.01 @ 12:27:05 End 2024.12.01 @ 12:58:26 Sessions 1 Manual Loads 0 Difficulty Rogue Special Mode None Game No. 104 Rogue 83 Adventurer 21 Explorer 0 Win Type - Total 10 Types 7/0/2/1/0/0/0/0/0 Lore% 45 Gallery% 68 Achievement% 59 Wizard Run 0 Options --------- Layout 1 ASCII 0 Keyboard 0 Movement Mouse Keybinds 0 Fullscreen 2 Font 32/SmallcapsGlow Map View 77x35 Zoom Use 0% Tactical HUD 1 Map Filters NONE Filters NONE Steam 1 RUN: 0daf1fa7-81de-4957-822b-257a7697c9dd